bitfinex/quotes_SOLUSD_20240620
["timestamp","ask_amount","ask_price","bid_price","bid_amount"]
[1718863908405,0.17,136.75,136.65,20.0]
[1718863908607,0.17,136.73,136.65,20.0]
[1718863909104,0.34,136.74,136.65,20.0]
[1718863909105,0.17,136.74,136.65,20.0]
[1718863909400,0.51,136.74,136.65,20.0]
[1718863909698,20.0,136.77,136.68,16.5509]
[1718863909906,0.51,136.76,136.69,20.0]
[1718863911688,0.34,136.76,136.69,20.0]
[1718863911886,0.68,136.77,136.69,20.0]
[1718863912085,20.0,136.78,136.69,20.0]
[1718863912388,21.68,136.8,136.69,20.0]
[1718863912698,20.0,136.79,136.69,20.0]
[1718863912877,7.31,136.8,136.69,20.0]
[1718863913301,41.68,136.81,136.7,22.4604]
[1718863913490,41.68,136.81,136.71,20.34]
[1718863913491,48.9895,136.81,136.71,20.34]
[1718863913689,7.3101,136.8,136.71,20.0]
[1718863914690,0.17,136.79,136.71,20.0]
[1718863914990,0.34,136.79,136.71,20.0]
[1718863915192,0.17,136.79,136.71,20.0]
[1718863915408,0.34,136.8,136.71,20.0]
[1718863915698,7.3094,136.81,136.71,20.0]
[1718863915902,7.3099,136.8,136.71,20.0]
[1718863916205,21.68,136.82,136.71,20.0]
[1718863916600,7.3095,136.81,136.71,20.0]
[1718863917102,0.17,136.8,136.71,20.0]
[1718863917401,18.2665,136.87,136.74,15.4254]
[1718863917604,27.3071,136.86,136.74,15.4254]
[1718863917779,7.3072,136.85,136.76,15.4254]
[1718863917984,7.3081,136.84,136.77,20.0]
[1718863918185,21.68,136.83,136.76,15.4254]
[1718863918725,28.9873,136.85,136.76,15.4254]
[1718863918887,7.3078,136.84,136.76,15.4254]
[1718863919087,7.3085,136.83,136.76,15.4254]
[1718863919305,21.68,136.85,136.76,15.4254]
[1718863919693,53.83366992,136.89,136.76,15.4254]
[1718863919888,20.0,136.88,136.77,6.0489]
[1718863920094,7.3064,136.87,136.78,36.5753]
[1718863920292,7.3066,136.87,136.78,36.5753]
[1718863920496,21.68,136.88,136.78,36.5753]
[1718863920806,21.68,136.88,136.78,16.5753]
[1718863921283,7.3071,136.86,136.78,16.5753]
[1718863921489,27.3064,136.87,136.78,16.5753]
[1718863921682,20.0,136.87,136.78,16.5753]
[1718863922581,27.3066,136.87,136.78,16.5753]
[1718863922841,7.3068,136.86,136.78,16.5753]
[1718863923210,27.3064,136.87,136.78,16.5753]
[1718863923587,0.17,136.86,136.78,16.5753]
[1718863924010,20.0,136.87,136.78,16.5753]
[1718863924214,27.3065,136.87,136.78,16.5753]
[1718863924511,0.34,136.86,136.78,16.5753]
[1718863924691,27.3062,136.87,136.78,16.5753]
[1718863924898,48.9862,136.87,136.78,16.5753]
[1718863925207,41.68,136.87,136.78,16.5753]
[1718863925410,7.3076,136.85,136.78,16.5753]
[1718863925621,7.3078,136.84,136.78,16.5753]
[1718863925788,7.3086,136.83,136.78,16.5753]
[1718863925989,7.3106,136.79,136.74,15.3499]
[1718863926200,21.85,136.81,136.74,15.3499]
[1718863926590,7.3105,136.79,136.74,15.3499]
[1718863926801,0.17,136.8,136.74,15.3499]
[1718863926995,0.34,136.8,136.74,15.3499]
[1718863927192,7.3105,136.79,136.74,15.3499]
[1718863927396,0.17,136.77,136.74,15.3499]
[1718863927606,18.2736,136.81,136.74,15.3499]
[1718863927607,6.5491,136.83,136.74,15.3499]
[1718863927815,20.0,136.82,136.74,15.3499]
[1718863927998,27.3093,136.82,136.74,15.3499]
[1718863928302,21.68,136.83,136.74,15.3499]
[1718863929714,21.68,136.83,136.75,20.0]
[1718863931106,7.3082,136.84,136.75,20.0]
[1718863931413,7.309,136.82,136.74,15.3499]
[1718863931615,43.1027,136.91,136.74,15.3499]
[1718863931813,21.68,136.86,136.75,20.0]
[1718863932119,27.3074,136.85,136.75,20.0]
[1718863932300,20.0,136.85,136.74,15.3499]
[1718863932504,27.3076,136.85,136.74,15.3499]
[1718863932719,27.3076,136.85,136.75,20.0]
[1718863932895,20.0,136.85,136.75,20.0]
[1718863933095,7.3078,136.84,136.75,20.0]
[1718863933316,27.3077,136.85,136.75,20.0]
[1718863933518,20.0,136.85,136.75,20.0]
[1718863933826,7.3082,136.84,136.75,20.0]
[1718863934302,20.0,136.85,136.75,20.0]
[1718863934696,0.17,136.84,136.75,20.0]
[1718863934912,20.0,136.85,136.75,20.0]
[1718863935495,27.3072,136.85,136.75,20.0]
[1718863935713,7.3079,136.84,136.75,20.0]
[1718863936113,7.3084,136.83,136.75,20.0]
[1718863936623,0.17,136.84,136.75,20.0]
[1718863936820,0.51,136.84,136.75,20.0]
[1718863936991,7.309,136.82,136.75,20.0]
[1718863937194,7.3098,136.81,136.75,20.0]
[1718863937527,20.0,136.85,136.76,22.1586]
[1718863937725,7.3073,136.85,136.76,22.1586]
[1718863937911,21.85,136.86,136.76,22.1586]
[1718863938101,27.3076,136.85,136.76,22.1586]
[1718863938300,18.2642,136.88,136.78,15.0899]
[1718863938616,21.68,136.87,136.78,15.0899]
[1718863938829,28.9864,136.87,136.78,15.0899]
[1718863939002,7.3067,136.86,136.78,15.0899]
[1718863939197,21.68,136.87,136.78,15.0899]
[1718863939523,7.3074,136.85,136.78,15.0899]
[1718863939710,21.68,136.87,136.78,15.0899]
[1718863940264,7.3068,136.86,136.78,15.0899]
[1718863940721,7.3074,136.85,136.78,15.0899]
[1718863940923,0.17,136.86,136.78,15.0899]
[1718863941121,7.3076,136.85,136.78,15.0899]
[1718863941825,7.64337872,136.88,136.78,15.0899]
[1718863942030,2.09322198,136.9,136.8,22.703]
[1718863942324,7.3044,136.91,136.81,20.0]
[1718863942699,7.3046,136.9,136.81,20.0]
[1718863942902,7.3046,136.9,136.8,22.703]
[1718863942903,7.306,136.88,136.8,22.703]
[1718863943114,7.3064,136.87,136.8,22.703]
[1718863943506,7.6458,136.88,136.8,22.703]
[1718863943705,38.2572,136.94,136.8,22.703]
[1718863943916,7.3037,136.92,136.81,20.0]
[1718863944124,20.0,136.91,136.82,16.066]
[1718863944321,27.3042,136.91,136.82,16.066]
[1718863944827,21.68,136.93,136.83,6.163]
[1718863945128,21.68,136.93,136.84,15.8177]
[1718863946215,28.9833,136.93,136.84,15.8177]
[1718863946423,26.4833,136.93,136.84,15.8177]
[1718863947127,19.18,136.93,136.84,15.8177]
[1718863947511,7.64063448,136.95,136.85,20.0]
[1718863947804,7.3035,136.92,136.84,15.8177]
[1718863948010,7.3032,136.93,136.84,15.8177]
[1718863948222,7.3036,136.92,136.84,15.8177]
[1718863948723,41.85,136.94,136.84,15.8177]
[1718863948935,7.3046,136.9,136.84,15.8177]
[1718863949100,28.9842,136.91,136.84,15.8177]
[1718863949305,20.17,136.94,136.85,21.247]
[1718863949533,7.303,136.93,136.85,21.247]
[1718863950110,49.1526,136.94,136.85,21.247]
[1718863950508,48.9826,136.94,136.85,21.247]
[1718863950932,7.3026,136.94,136.86,20.0]
[1718863951136,21.68,136.94,136.86,20.0]
[1718863951333,28.9825,136.94,136.86,20.0]
[1718863951631,21.68,136.94,136.86,20.0]
[1718863951928,28.9825,136.94,136.87,16.494]
[1718863952108,21.68,136.94,136.88,20.0]
[1718863953528,21.68,136.94,136.87,16.494]
[1718863955629,7.303,136.93,136.87,16.494]
[1718863955928,21.68,136.91,136.87,16.494]
[1718863956941,28.9841,136.91,136.87,16.494]
[1718863957255,21.68,136.91,136.87,16.494]
[1718863957553,28.9844,136.91,136.87,16.494]
[1718863957938,28.9843,136.91,136.87,16.494]
[1718863958332,7.4746,136.9,136.87,16.494]
[1718863958794,0.17,136.9,136.87,16.494]
[1718863959241,28.9842,136.91,136.87,16.494]
[1718863959838,0.17,136.9,136.85,6.2421]
[1718863960093,0.51,136.9,136.85,6.2421]
[1718863960368,0.34,136.9,136.85,6.2421]
[1718863960566,21.68,136.91,136.85,6.2421]
[1718863960727,0.17,136.91,136.85,6.2421]
[1718863960931,0.51,136.91,136.85,6.2421]
[1718863961131,0.51,136.91,136.83,15.9806]
[1718863961132,7.475,136.9,136.83,15.9806]
[1718863961338,22.19,136.89,136.83,15.9806]
[1718863961551,29.4952,136.89,136.83,15.9806]
[1718863961755,7.3056,136.88,136.83,15.9806]
[1718863961958,29.4953,136.89,136.83,15.9806]
[1718863963059,22.19,136.89,136.83,15.9806]
[1718863963258,0.17,136.9,136.83,15.9806]
[1718863963757,0.34,136.9,136.83,15.9806]
[1718863963963,7.6446,136.9,136.83,15.9806]
[1718863964264,7.3052,136.89,136.83,15.9806]
[1718863964566,0.34,136.9,136.83,15.9806]
[1718863964567,7.3074,136.85,136.83,15.9806]
[1718863964741,0.17,136.86,136.8,15.2789]
[1718863965058,20.68,136.86,136.8,15.2789]
[1718863965758,27.9869,136.86,136.8,15.2789]
[1718863965954,20.68,136.86,136.8,15.2789]
[1718863966151,7.3076,136.85,136.8,15.2789]
[1718863966549,28.9879,136.84,136.8,15.2789]
[1718863966859,0.17,136.83,136.72,15.1201]
[1718863967044,21.68,136.84,136.72,15.1201]
[1718863967360,0.17,136.83,136.72,15.1201]
[1718863968060,21.68,136.84,136.75,6.3537]
[1718863968269,21.68,136.87,136.76,16.2962]
[1718863968783,21.68,136.87,136.78,16.2962]
[1718863969959,29.35670353,136.92,136.81,15.6556]
[1718863970172,7.3044,136.91,136.81,15.6556]
[1718863970659,28.9837,136.92,136.81,15.6556]
[1718863970864,21.68,136.92,136.81,15.6556]
[1718863971064,7.3041,136.91,136.81,15.6556]
[1718863972862,21.85,136.89,136.81,15.6556]
[1718863973064,7.6457,136.88,136.81,15.6556]
[1718863973248,0.34,136.88,136.81,15.6556]
[1718863973566,0.17,136.88,136.81,15.6556]
[1718863973786,0.34,136.88,136.81,15.6556]
[1718863974456,7.6457,136.88,136.81,15.6556]
[1718863974649,0.34,136.88,136.81,15.6556]
[1718863974852,7.64454162,136.92,136.81,15.6556]
[1718863975168,28.9836,136.92,136.81,15.6556]
[1718863975571,21.68,136.92,136.81,15.6556]
[1718863976464,28.9836,136.92,136.81,15.6556]
[1718863976668,21.68,136.92,136.81,15.6556]
[1718863977054,21.68,136.92,136.82,22.4737]
[1718863977269,21.68,136.92,136.83,16.0807]
[1718863977763,21.68,136.94,136.85,16.0807]
[1718863977943,7.64052762,136.95,136.85,16.0807]
[1718863978165,7.64052762,136.95,136.87,15.2532]
[1718863978549,21.68,136.98,136.89,16.2067]
[1718863980158,7.63928419,137.02,136.9,6.6082]
[1718863980358,21.68,137.0,136.9,6.6082]
[1718863981064,7.2983,137.02,136.9,6.6082]
[1718863981065,7.2983,137.02,136.91,16.1026]
[1718863981250,21.68,137.01,136.91,16.1026]
[1718863981878,21.68,137.01,136.92,1.45879696]
[1718863982174,21.68,137.01,136.91,16.1026]
[1718863982380,28.9788,137.01,136.91,16.1026]
[1718863983073,7.2993,137.0,136.91,16.1026]
[1718863983252,7.2998,136.99,136.91,16.1026]
[1718863983464,0.17,137.01,136.91,16.1026]
[1718863983643,7.6388,137.01,136.91,16.1026]
[1718863984274,0.34,137.01,136.91,16.1026]
[1718863984652,21.68,137.01,136.91,16.1026]
[1718863984961,27.40983525,137.06,136.9,6.7782]
[1718863984962,21.68,137.05,136.93,21.9833]
[1718863985348,7.2976,137.04,136.93,21.9833]
[1718863985542,28.9766,137.05,136.93,21.9833]
[1718863985770,21.68,137.05,136.93,21.9833]
[1718863985949,7.2975,137.04,136.93,21.9833]
[1718863986153,21.68,137.05,136.95,21.8799]
[1718863986956,28.9767,137.05,136.95,21.8799]
[1718863987669,21.68,137.05,136.95,21.8799]
[1718863988051,7.2979,137.03,136.95,21.8799]
[1718863988777,7.3,136.99,136.95,21.8799]
[1718863989160,0.68,137.0,136.95,21.8799]
[1718863989475,0.51,137.0,136.95,21.8799]
[1718863990166,7.8092,137.0,136.95,21.8799]
[1718863990375,0.17,136.97,136.9,6.143]
[1718863990686,7.3026,136.94,136.9,6.143]
[1718863990881,21.68,136.95,136.9,6.143]
[1718863990882,28.9821,136.95,136.9,6.143]
[1718863991181,7.4726,136.94,136.9,6.143]
[1718863991762,0.17,136.94,136.9,6.143]
[1718863991959,0.51,136.94,136.9,6.143]
[1718863992360,0.34,136.94,136.9,6.143]
[1718863992571,0.17,136.92,136.86,23.0249]
[1718863992768,7.3045,136.91,136.86,23.0249]
[1718863993045,22.02,136.92,136.86,23.0249]
[1718863993275,29.3237,136.92,136.86,23.0249]
[1718863993587,0.17,136.9,136.86,23.0249]
[1718863993778,0.34,136.9,136.86,23.0249]
[1718863994685,7.6448,136.9,136.86,23.0249]
[1718863994893,0.17,136.89,136.86,23.0249]
[1718863995185,0.34,136.89,136.86,23.0249]
[1718863995584,0.17,136.9,136.83,22.9474]
[1718863995785,0.51,136.9,136.83,22.9474]
[1718863996472,0.34,136.9,136.83,22.9474]
[1718863997081,20.0,136.91,136.83,22.9474]
[1718863997392,0.17,136.9,136.83,22.9474]
[1718863997694,7.6449,136.9,136.83,22.9474]
[1718863998492,0.34,136.9,136.83,22.9474]
[1718863998989,7.4746,136.9,136.83,22.9474]
[1718864000161,0.17,136.88,136.83,22.9474]
[1718864000375,7.6447,136.9,136.83,22.9474]
[1718864000569,7.3052,136.89,136.83,22.9474]
[1718864000774,0.17,136.88,136.83,22.9474]
[1718864000987,0.51,136.88,136.83,16.5029]
[1718864001187,7.3069,136.86,136.8,6.3006]
[1718864001397,0.17,136.85,136.8,6.3006]
[1718864001578,0.34,136.85,136.8,6.3006]
[1718864002076,0.34,136.84,136.8,6.3006]
[1718864002403,0.34,136.84,136.79,16.2323]
[1718864002560,7.3089,136.82,136.79,16.2323]
[1718864002767,0.17,136.81,136.77,6.0684]
[1718864002965,0.17,136.83,136.77,6.0684]
[1718864003682,0.34,136.83,136.77,6.0684]
[1718864003883,7.6483,136.83,136.77,6.0684]
[1718864004290,0.34,136.83,136.77,6.0684]
[1718864004594,7.6484,136.83,136.77,6.0684]
[1718864004774,0.34,136.83,136.77,6.0684]
[1718864005582,0.34,136.82,136.77,6.0684]
[1718864005790,20.0,136.85,136.77,6.0684]
[1718864005994,28.9851,136.89,136.77,6.0684]
[1718864006284,7.3048,136.9,136.77,6.0684]
[1718864006462,20.0,136.89,136.77,6.0684]
[1718864006668,27.3051,136.89,136.77,6.0684]
[1718864007066,6.5773,136.97,136.8,16.442]
[1718864007272,6.5773,136.97,136.81,0.17]
[1718864007273,7.3036,136.92,136.81,0.17]
[1718864007471,7.3033,136.93,136.81,0.17]
[1718864008076,7.3027,136.94,136.82,6.2412]
[1718864008273,27.303,136.93,136.82,6.2412]
[1718864008597,7.303,136.93,136.82,6.2412]
[1718864009479,7.3026,136.94,136.82,6.2412]
[1718864009679,20.0,136.93,136.82,6.2412]
[1718864010298,20.0,136.94,136.82,6.2412]
[1718864010478,7.3042,136.91,136.82,6.2412]
[1718864010675,0.34,136.9,136.82,6.2412]
[1718864010889,0.34,136.91,136.82,6.2412]
[1718864012308,7.302,136.95,136.82,6.2412]
[1718864012487,7.301,136.97,136.84,6.1675]
[1718864012803,7.3014,136.96,136.85,16.0976]
[1718864013317,43.3995,136.99,136.85,16.0976]
[1718864013318,7.3019,136.95,136.85,16.0976]
[1718864014705,0.17,136.94,136.85,16.0976]
[1718864014907,7.3035,136.92,136.85,16.0976]
[1718864015086,7.6426,136.94,136.86,1.21476962]
[1718864015402,0.34,136.93,136.85,16.0976]
[1718864015591,7.4736,136.92,136.85,16.0976]
[1718864015905,0.34,136.92,136.85,16.0976]
[1718864016109,0.17,136.93,136.85,16.0976]
[1718864016405,0.17,136.94,136.85,16.0976]
[1718864016607,7.4725,136.94,136.85,16.0976]
[1718864017091,7.3049,136.9,136.85,16.0976]
[1718864017292,7.3042,136.91,136.85,16.0976]
[1718864017513,7.4737,136.92,136.85,16.0976]
[1718864017799,0.17,136.9,136.85,16.0976]
[1718864018005,0.51,136.93,136.85,16.0976]
[1718864018006,0.34,136.93,136.85,16.0976]
[1718864018181,20.17,136.93,136.85,16.0976]
[1718864018997,27.4732,136.93,136.85,16.0976]
[1718864020013,0.34,136.92,136.85,16.0976]
[1718864020183,0.17,136.91,136.85,16.0976]
[1718864020399,0.34,136.91,136.85,16.0976]
[1718864020705,27.3031,136.93,136.85,16.0976]
[1718864020883,7.3031,136.93,136.85,16.0976]
[1718864021401,7.3033,136.93,136.85,16.0976]
[1718864021977,0.51,136.92,136.85,16.0976]
[1718864023200,0.17,136.96,136.85,16.0976]
[1718864023414,0.68,136.96,136.86,20.0]
[1718864023585,7.3005,136.98,136.86,20.0]
[1718864023786,7.3014,136.96,136.86,20.0]
[1718864024299,7.640753,137.01,136.88,16.1947]
[1718864024506,33.9973,137.02,136.89,20.0]
[1718864024507,7.2999,136.99,136.89,20.0]
[1718864024723,7.3005,136.98,136.89,20.0]
[1718864024893,33.9973,137.02,136.89,20.0]
[1718864025204,36.09052198,137.02,136.89,20.0]
[1718864025410,7.3007,136.98,136.89,20.0]
[1718864025606,0.17,136.97,136.88,16.1947]
[1718864026186,0.51,136.97,136.88,16.1947]
[1718864026612,0.51,136.97,136.89,20.0]
[1718864027007,22.09322198,137.01,136.89,20.0]
[1718864027191,7.4694,137.0,136.89,20.0]
[1718864027506,0.17,136.98,136.89,20.0]
[1718864028302,7.4703,136.98,136.89,20.0]
[1718864028495,0.34,136.97,136.89,20.0]
[1718864029599,0.17,136.98,136.89,20.0]
[1718864029789,7.8103,136.98,136.89,20.0]
[1718864030393,0.51,136.98,136.89,20.0]
[1718864030796,7.8103,136.98,136.89,20.0]
[1718864031898,0.51,136.98,136.89,20.0]
[1718864032809,7.8104,136.98,136.89,20.0]
[1718864033118,7.4714,136.96,136.89,20.0]
[1718864033498,0.34,136.97,136.89,20.0]
[1718864033702,0.17,136.96,136.89,20.0]
[1718864033887,0.34,136.96,136.89,20.0]
[1718864034909,0.17,136.96,136.89,20.0]
[1718864036391,7.2994,137.0,136.9,6.6634]
[1718864036594,7.2993,137.0,136.9,6.6634]
[1718864037503,7.2998,136.99,136.9,6.6634]
[1718864037798,0.17,136.98,136.9,6.6634]
[1718864038008,0.51,136.98,136.9,6.6634]
[1718864039117,0.17,136.97,136.9,6.6634]
[1718864039299,0.51,136.97,136.9,6.6634]
[1718864040290,0.34,136.97,136.9,6.6634]
[1718864041712,0.17,136.96,136.9,6.6634]
[1718864042394,0.34,136.97,136.9,6.6634]
[1718864042808,0.34,136.98,136.9,6.6634]
[1718864043027,9.39232198,137.01,136.91,15.5023]
[1718864043221,7.2993,137.0,136.91,15.5023]
[1718864043521,29.17870223,137.04,136.91,15.5023]
[1718864043814,29.17870223,137.04,136.92,20.0]
[1718864044015,7.299,137.01,136.92,20.0]
[1718864044216,7.2981,137.03,136.92,20.0]
[1718864044417,35.04803203,137.04,136.94,15.1746]
[1718864044597,27.4093298,137.04,136.94,15.1746]
[1718864044794,7.2978,137.03,136.94,15.1746]
[1718864045212,27.4093298,137.04,136.94,15.1746]
[1718864045213,7.2982,137.02,136.94,15.1746]
[1718864045918,7.2978,137.03,136.94,15.1746]
[1718864046125,36.47155433,137.04,136.94,15.1746]
[1718864046415,29.17435433,137.04,136.95,20.0]
[1718864046614,21.54,137.04,136.95,20.0]
[1718864046791,7.2967,137.05,136.95,20.0]
[1718864046994,7.2962,137.06,136.95,20.0]
[1718864047197,45.494394,137.08,136.95,20.0]
[1718864047418,27.255594,137.08,136.96,22.7803]
[1718864047615,29.25105739,137.16,137.01,16.1321]
[1718864047828,7.2933,137.12,137.02,20.0]
[1718864048316,7.2924,137.13,137.02,20.0]
[1718864048523,2.09322198,137.15,137.03,21.9048]
[1718864048707,2.09322198,137.15,137.04,20.0]
[1718864048895,1.59322198,137.15,137.05,15.0701]
[1718864049296,1.59322198,137.15,137.07,6.3345]
[1718864050194,7.62599128,137.22,137.08,15.0902]
[1718864050398,7.2881,137.21,137.09,20.0]
[1718864050941,7.2886,137.2,137.09,20.0]
[1718864051289,21.54,137.23,137.09,20.0]
[1718864051290,7.2901,137.18,137.09,20.0]
[1718864051398,7.2898,137.18,137.08,15.0902]
[1718864051602,7.2892,137.19,137.09,6.0501]
[1718864051796,7.288,137.22,137.1,20.0]
[1718864052023,21.54,137.23,137.1,20.0]
[1718864052200,7.2888,137.2,137.1,20.0]
[1718864052397,39.7577,137.23,137.1,20.0]
[1718864052625,7.29,137.18,137.1,20.0]
[1718864052799,7.2902,137.17,137.09,6.0501]
[1718864053117,7.62374018,137.24,137.09,6.0501]
[1718864053118,7.2916,137.15,137.09,6.0501]
[1718864053298,7.2914,137.15,137.09,6.0501]
[1718864053500,0.17,137.18,137.09,6.0501]
[1718864053721,7.7998,137.18,137.09,6.0501]
[1718864053898,0.17,137.17,137.09,6.0501]
[1718864054105,0.34,137.17,137.09,6.0501]
[1718864055306,0.17,137.16,137.09,6.0501]
[1718864055502,0.51,137.16,137.09,6.0501]
[1718864055717,0.17,137.16,137.09,6.0501]
[1718864055922,7.6307,137.16,137.09,6.0501]
[1718864056127,0.34,137.16,137.09,6.0501]
[1718864057629,7.4617,137.15,137.09,6.0501]
[1718864058312,7.4618,137.14,137.09,6.0501]
[1718864058623,0.17,137.13,137.09,6.0501]
[1718864058805,0.17,137.15,137.09,6.0501]
[1718864059003,0.17,137.14,137.09,6.0501]
[1718864059319,7.2906,137.17,137.09,6.0501]
[1718864059629,7.2901,137.18,137.09,6.0501]
[1718864060328,59.7629,137.19,137.09,6.0501]
[1718864060618,7.2903,137.17,137.09,6.0501]
[1718864060927,20.0,137.19,137.09,6.0501]
[1718864061128,27.62965096,137.19,137.09,6.0501]
[1718864061309,45.85255096,137.19,137.09,6.0501]
[1718864061505,7.2916,137.15,137.09,6.0501]
[1718864061711,0.17,137.14,137.09,6.0501]
[1718864061912,0.17,137.18,137.09,6.0501]
[1718864062108,0.17,137.15,137.09,6.0501]
[1718864062317,7.8014,137.15,137.09,6.0501]
[1718864062619,0.17,137.14,137.09,6.0501]
[1718864062821,7.6314,137.15,137.09,6.0501]
[1718864063019,0.34,137.15,137.09,6.0501]
[1718864063610,7.6313,137.15,137.09,6.0501]
[1718864064929,0.17,137.14,137.09,6.0501]
[1718864065110,0.17,137.13,137.09,6.0501]
[1718864065302,7.8025,137.13,137.09,6.0501]
[1718864065507,0.17,137.12,137.09,6.0501]
[1718864065842,7.2937,137.11,137.03,21.8257]
[1718864065999,7.9741,137.1,137.03,21.8257]
[1718864066201,0.17,137.07,137.03,21.8257]
[1718864066406,0.51,137.07,137.03,21.8257]
[1718864068305,7.8055,137.07,137.03,15.7993]
[1718864068507,0.51,137.07,137.03,15.7993]
[1718864069010,22.05,137.07,136.96,22.4464]
[1718864069221,0.17,137.06,136.96,22.4464]
[1718864069426,0.17,137.05,136.96,22.4464]
[1718864069619,0.51,137.05,136.96,22.4464]
[1718864069831,0.17,137.04,136.96,22.4464]
[1718864070133,0.51,137.04,136.96,22.4464]
[1718864070337,0.17,137.03,136.97,20.0]
[1718864070509,0.34,137.03,136.97,20.0]
[1718864070822,0.17,137.03,136.97,20.0]
[1718864071017,7.2948,137.09,136.97,20.0]
[1718864071221,0.17,137.1,136.97,20.0]
[1718864071424,0.17,137.07,136.97,20.0]
[1718864071624,7.8055,137.07,136.97,20.0]
[1718864072437,0.51,137.07,136.97,20.0]
[1718864072610,0.17,137.07,136.97,20.0]
[1718864072806,7.2942,137.1,136.97,20.0]
[1718864073015,7.6345,137.09,136.97,20.0]
[1718864073238,7.2945,137.09,136.97,20.0]
[1718864074131,18.235,137.1,136.97,20.0]
[1718864074441,7.2974,137.04,136.97,20.0]
[1718864074641,0.17,137.05,136.97,20.0]
[1718864074816,0.34,137.05,136.97,20.0]
[1718864075015,0.51,137.04,136.97,20.0]
[1718864075239,0.34,137.04,136.97,20.0]
[1718864075917,0.17,137.03,136.97,20.0]
[1718864076113,20.0,137.09,136.97,20.0]
[1718864076323,7.2948,137.09,136.97,20.0]
[1718864076527,7.295,137.08,136.97,20.0]
[1718864076717,7.2946,137.09,136.97,20.0]
[1718864076926,7.2951,137.08,136.97,20.0]
[1718864077520,0.34,137.07,136.97,20.0]
[1718864077722,0.51,137.07,136.97,20.0]
[1718864077936,0.34,137.06,136.97,20.0]
[1718864078314,0.34,137.05,136.97,20.0]
[1718864078524,0.34,137.04,136.97,20.0]
[1718864079115,0.34,137.04,136.97,21.25911738]
[1718864079552,0.17,137.03,136.97,20.0]
[1718864081918,0.17,137.03,136.96,22.4464]
[1718864082127,0.17,137.02,136.96,22.4464]
[1718864082331,7.8082,137.02,136.96,22.4464]
[1718864082519,7.4688,137.01,136.96,22.4464]
[1718864082735,0.51,137.0,136.96,22.4464]
[1718864083029,0.34,137.0,136.96,22.4464]
[1718864083628,0.34,136.99,136.96,22.4464]
[1718864083939,0.34,136.99,136.93,16.5028]
[1718864083940,0.17,136.98,136.93,16.5028]
[1718864084336,0.34,136.98,136.93,16.5028]
[1718864084542,0.51,136.97,136.93,16.5028]
[1718864084753,0.17,136.96,136.92,6.1494]
[1718864085050,0.34,136.96,136.91,15.6204]
[1718864085347,0.34,136.95,136.91,15.6204]
[1718864085524,0.17,136.95,136.91,15.6204]